fUSD/lending_fUSD_20260205
["ID","MTS","AMOUNT","RATE_DAILY","PERIOD"]
[404568148,1770301846392,-250.0,0.00017045,2]
[404568149,1770301846401,-250.0,0.00017045,2]
[404568150,1770301846412,-909.24,0.00017058,2]
[404568151,1770301846422,-15045.0,0.0001706,2]
[404568152,1770301846431,-909.24,0.00017088,2]
[404568153,1770301846444,-217.15233878,0.000171,2]
[404568155,1770301846454,-342.33387116,0.00017114,2]
[404568156,1770301846463,-909.24,0.00017119,2]
[404568157,1770301846473,-225.18697532,0.00017155,2]
[404568158,1770301846482,-157.14,0.00017159,2]
[404568159,1770301846492,-24706.5573525,0.00017185,2]
[404568160,1770301846501,-232068.4187118,0.00017185,2]
[404568161,1770301846668,-21934.7794034,0.00017185,2]
[404568163,1770301846677,-233.51889341,0.0001721,2]
[404568164,1770301846686,-216.65,0.00017235,2]
[404568165,1770301846699,-524.0,0.00017238,2]
[404568166,1770301846708,-487.0,0.00017238,2]
[404568167,1770301846717,-574.65,0.00017238,2]
[404568168,1770301846727,-305.84785682,0.00017251,2]
[404568169,1770301846736,-1000.0,0.0001726,2]
[404568170,1770301846745,-242.15909246,0.00017265,2]
[404568171,1770301846755,-153.52,0.00017267,2]
[404568172,1770301846764,-1881.8181505,0.00017274,2]
[404568173,1770301846773,-14634.649067,0.00017274,2]
[404568174,1770301846783,-983.7312206,0.0001728,2]
[404568175,1770301846792,-785.28614196,0.00017289,2]
[404568211,1770302415452,1035.84,8.002e-05,2]
[404568222,1770302875890,-1200.0,0.00010289,2]
[404568223,1770302875919,-300.0,0.00010289,2]
[404568224,1770302875975,-5478.02702434,0.0001029,2]
[404568225,1770302876112,-2081.57697566,0.0001029,2]
[404568226,1770302876141,-703.324,0.0001029,2]
[404568227,1770302876169,-427.20159574,0.00010474,2]
[404568228,1770302876199,-1000.0,0.00010499,2]
[404568229,1770302876228,-150.0,0.00010499,2]
[404568230,1770302876346,-2456.0893875,0.00010573,2]
[404568231,1770302876375,-237.0,0.00010599,2]
[404568232,1770302876442,-1038.8048572,0.00011099,2]
[404568233,1770302876456,-237.0,0.00011099,2]
[404568234,1770302876490,-2871.0205097,0.00011099,2]
[404568235,1770302876514,-1742.8107153,0.00011099,2]
[404568236,1770302876548,-2515.1582653,0.00011099,2]
[404568237,1770302876558,-200.0,0.00011292,2]
[404568238,1770302876568,-500.0,0.00011292,2]
[404568239,1770302876578,-500.0,0.00011292,2]
[404568240,1770302876587,-500.0,0.00011292,2]
[404568241,1770302876597,-500.0,0.00011292,2]
[404568242,1770302876606,-500.0,0.00011292,2]
[404568243,1770302876616,-500.0,0.00011292,2]
[404568244,1770302876625,-500.0,0.00011292,2]
[404568245,1770302876634,-500.0,0.00011292,2]
[404568246,1770302876644,-413.831225,0.00011292,2]
[404568247,1770302876676,-86.168775,0.00011292,2]
[404568248,1770302876705,-500.0,0.00011292,2]
[404568249,1770302876735,-500.0,0.00011292,2]
[404568250,1770302876764,-500.0,0.00011292,2]
[404568251,1770302876796,-200.0,0.00011292,2]
[404568252,1770302876824,-500.0,0.00011292,2]
[404568253,1770302876852,-500.0,0.00011292,2]
[404568254,1770302876881,-500.0,0.00011292,2]
[404568255,1770302876910,-500.0,0.00011292,2]
[404568256,1770302876940,-500.0,0.00011292,2]
[404568257,1770302876969,-500.0,0.00011292,2]
[404568258,1770302876999,-151.0,0.00011292,2]
[404568259,1770302877090,-500.0,0.00011292,2]
[404568260,1770302877120,-151.0,0.00011292,2]
[404568261,1770302877148,-500.0,0.00011292,2]
[404568262,1770302877180,-151.0,0.00011292,2]
[404568263,1770302877211,-500.0,0.00011292,2]
[404568264,1770302877241,-151.0,0.00011292,2]
[404568265,1770302877270,-500.0,0.00011292,2]
[404568266,1770302877304,-151.0,0.00011292,2]
[404568267,1770302877333,-500.0,0.00011292,2]
[404568268,1770302877363,-151.0,0.00011292,2]
[404568269,1770302877394,-151.0,0.00011292,2]
[404568270,1770302877423,-151.0,0.00011292,2]
[404568271,1770302877451,-151.0,0.00011292,2]
[404568272,1770302877480,-151.0,0.00011292,2]
[404568273,1770302877513,-151.0,0.00011292,2]
[404568274,1770302877638,-1595.21565255,0.00011299,2]
[404568275,1770302877758,-3190.4313051,0.00011299,2]
[404568276,1770302877853,-3619.1473898,0.00011299,2]
[404568277,1770302877976,-2989.13,0.00011299,2]
[404568278,1770302878101,-4021.75,0.00011299,2]
[404568279,1770302878134,-300.0,0.00011318,2]
[404568280,1770302878164,-500.0,0.00011318,2]
[404568281,1770302878195,-150.99,0.00011556,2]
[404568282,1770302878567,-3428.18,0.00011828,2]
[404568283,1770302878598,-150.99,0.00011828,2]
[404568284,1770302878630,-299.99,0.00011828,2]
[404568285,1770302878723,-2894.3,0.00011828,2]
[404568286,1770302878753,-200.0,0.0001184,2]
[404568287,1770302878788,-200.0,0.0001184,2]
[404568288,1770302878921,-1595.21565255,0.00012124,2]
[404568289,1770302879150,-3190.4313051,0.00012124,2]
[404568290,1770302879188,-2411.35434745,0.00012124,2]
[404568291,1770302879214,-1207.79304235,0.00012124,2]
[404568292,1770302879224,-2456.0893875,0.00012202,2]
[404568293,1770302879233,-357.86757015,0.00012331,2]
[404568294,1770302879248,-69.33402558,0.00012331,2]
[404568295,1770302879257,-152.0,0.00012385,3]
[404568296,1770302879267,-78.66597442,0.00012388,2]
[404568297,1770302879320,-121.33402558,0.00012388,2]
[404568298,1770302879330,-200.0,0.00012388,2]
[404568299,1770302879340,-178.66597442,0.00012936,2]
[404568300,1770302879355,-21.33402558,0.00012936,2]
[404568301,1770302879364,-129.65597442,0.00012936,2]
[404568302,1770302879393,-54.53,0.00012936,2]
[404568303,1770302879425,-15.81402558,0.00012936,2]
[404568304,1770302879434,-3412.36597442,0.00012949,2]
[404568305,1770302879466,-150.99,0.00012949,2]
[404568306,1770302879481,-299.99,0.00012949,2]
[404568307,1770302879500,-2241.69,0.00012949,2]
[404568308,1770302879514,-2299.75837303,0.00012949,2]
[404568309,1770302879527,-152.0,0.00013033,4]
[404568310,1770302879535,-442.54162697,0.00013179,2]
[404568311,1770302879550,-200.0,0.00013179,2]
[404568312,1770302879564,-200.0,0.00013179,2]
[404568313,1770302879578,-2755.36795579,0.00013179,2]
[404568314,1770302879587,-656.04204421,0.00013179,2]
[404568315,1770302879608,-8404.79434745,0.00013179,2]
[404568316,1770302879651,-434.10392173,0.00013179,2]
[404568317,1770302879661,-200.0,0.00013484,2]
[404568318,1770302879670,-200.0,0.00013484,2]
[404568319,1770302879679,-158.26,0.00013634,2]
[404568320,1770302879689,-152.0,0.00013681,5]
[404568321,1770302879699,-502.58453595,0.00013698,2]
[404568322,1770302879709,-5162.63023722,0.00013774,2]
[404568323,1770302881855,-300.0,0.00012201,2]
[404568324,1770302881887,-3242.16411023,0.00013774,2]
[404568325,1770302881919,-500.0,0.00014031,2]
[404568326,1770302881952,-200.0,0.00014032,2]
[404568327,1770302881982,-200.0,0.00014032,2]
[404568328,1770302882012,-427.20159573,0.00014187,2]
[404568329,1770302882048,-109.27858808,0.00014329,6]
[404568330,1770302882239,-42.72141192,0.00014329,6]
[404568331,1770302882269,-3240.0,0.00014394,2]
[404568332,1770302882303,-200.0,0.0001458,2]
[404568333,1770302882334,-200.0,0.0001458,2]
[404568334,1770302882488,-1595.21565255,0.000146,2]
[404568335,1770302882558,-1082.07293553,0.000146,2]
[404568336,1770302882608,-4272.50424063,0.000146,2]
[404568337,1770302882644,-1455.00151874,0.000146,2]
[404568338,1770302882654,-500.0,0.000146,2]
[404568339,1770302882664,-500.0,0.00014843,2]
[404568340,1770302882674,-500.0,0.00014843,2]
[404568341,1770302882684,-276.0,0.00014879,2]
[404568342,1770302882694,-200.0,0.00014907,2]
[404568343,1770302882703,-701.28858808,0.0001496,2]
[404568344,1770302882748,-2414.27141192,0.0001496,2]
[404568345,1770302882782,-152.0,0.00014977,7]
[404568346,1770302882812,-250.0,0.00015,2]
[404568347,1770302882841,-200.0,0.00015128,2]
[404568348,1770302882872,-200.0,0.00015128,2]
[404568349,1770302882902,-200.0,0.00015135,2]
[404568350,1770302882930,-1000.0,0.00015148,2]
[404568351,1770302882959,-152.01739561,0.00015237,2]
[404568352,1770302883049,-1159.21695184,0.00015425,2]
[404568353,1770302883115,-420.0,0.00013391,2]
[404568354,1770302883145,-1914.43260439,0.00015425,2]
[404568355,1770302883176,-79.83880753,0.00015425,2]
[404568356,1770302883195,-152.0,0.00015425,2]
[404568357,1770302883213,-250.0,0.00015425,2]
[404568358,1770302883228,-200.0,0.00015425,2]
[404568359,1770302883260,-4649.30598369,0.00015425,2]
[404568360,1770302883973,-2456.0893875,0.00015461,2]
[404568361,1770302884003,-500.0,0.00015478,2]
[404568362,1770302884036,-378.56522147,0.00015478,2]
[404568363,1770302884067,-500.0,0.00015478,2]
[404568364,1770302884097,-378.0,0.00015535,2]
[404568365,1770302884128,-574.70078206,0.00015596,2]
[404568366,1770302884224,-425.29921794,0.00015596,2]
[404568367,1770302884234,-219.0665835,0.00015602,2]
[404568368,1770302884287,-780.9334165,0.00015602,2]
[404568369,1770302884317,-152.0,0.00015625,8]
[404568370,1770302884348,-200.0,0.00015676,2]
[404568371,1770302884378,-200.0,0.00015676,2]
[404568372,1770302884407,-1500.0,0.00015696,2]
[404568373,1770302884435,-500.0,0.00015763,2]
[404568374,1770302884464,-256.701042,0.00016,2]
[404568375,1770302884554,-1059.67152519,0.00016027,2]
[404568376,1770302884568,-701.39803262,0.00016027,2]
[404568377,1770302884792,-587.0,0.00014698,2]
[404568378,1770302884802,-1869.0893875,0.00016027,2]
[404568379,1770302884821,-500.0,0.00016027,2]
[404568380,1770302884838,-378.56522147,0.00016027,2]
[404568381,1770302884852,-500.0,0.00016027,2]
[404568382,1770302884867,-378.0,0.00016027,2]
[404568383,1770302884885,-1000.0,0.00016027,2]
[404568384,1770302884927,-780.9334165,0.00016027,2]
[404568385,1770302884945,-152.0,0.00016027,2]
[404568386,1770302884960,-200.0,0.00016027,2]
[404568387,1770302884984,-200.0,0.00016027,2]
[404568388,1770302885003,-1500.0,0.00016027,2]
[404568389,1770302885029,-500.0,0.00016027,2]
[404568390,1770302885047,-256.701042,0.00016027,2]
[404568391,1770302885064,-2820.741083,0.00016027,2]
[404568392,1770302885087,-1771.69616694,0.00016027,2]
[404568393,1770302885096,-427.20159573,0.00016044,2]
[404568394,1770302885105,-1000.0,0.00016093,2]
[404568395,1770302885115,-1000.0,0.00016102,2]
[404568396,1770302885125,-189.57,0.00016106,3]
[404568397,1770302885135,-5611.54223733,0.00016116,2]
[404568398,1770302887776,-600.0,0.000146,2]
[404568399,1770302887809,-600.0,0.00014766,2]
[404568400,1770302887839,-600.0,0.00014766,2]
[404568401,1770302887867,-600.0,0.00014766,2]
[404568402,1770302887895,-600.0,0.0001606,2]
[404568403,1770302888002,-4000.01,0.00016116,2]
[404568404,1770302888045,-388.43776267,0.00016116,2]
[404568405,1770302888076,-378.0,0.00016127,2]
[404568406,1770302888106,-823.0,0.00016131,2]
[404568407,1770302888137,-500.0,0.00016152,2]
[404568408,1770302888356,-773.71,0.00016163,2]
[404568409,1770302888407,-200.0,0.00016224,2]
[404568410,1770302888437,-200.0,0.00016224,2]
[404568411,1770302888655,-3473.71447466,0.00016235,2]
[404568412,1770302888694,-10000.01,0.00016235,2]
[404568413,1770302888714,-1095.07140054,0.00016235,2]
[404568414,1770302888724,-207.76603134,0.00016243,2]
[404568415,1770302888734,-2000.0,0.00016244,2]
[404568416,1770302888743,-6697.17256812,0.0001625,2]
[404568417,1770302888758,-1707.62177933,0.0001625,2]
[404568418,1770302888768,-152.0,0.00016273,9]
[404568419,1770302888779,-341.90849198,0.00016298,2]
[404568420,1770302888789,-362.1536654,0.00016298,2]
[404568421,1770302888799,-775.48,0.00016437,2]
[404568422,1770302888809,-800.0,0.00016438,2]
[404568423,1770302888822,-5860.84606329,0.00016443,2]
[404568424,1770302888864,-1292.06018809,0.00016443,2]
[404568425,1770302888888,-7415.88962382,0.00016443,2]
[404568426,1770302888898,-1292.06018809,0.00016579,2]
[404568427,1770302888939,-1207.93981191,0.00016579,2]
[404568428,1770302888968,-7500.01,0.00016651,2]
[404568429,1770302888999,-1207.93981191,0.00016651,2]
[404568430,1770302889042,-4139.16393671,0.00016651,2]
[404568431,1770302889075,-1721.68212658,0.00016651,2]
[404568432,1770302889085,-1723.28431289,0.00016679,2]
[404568433,1770302889108,-5860.84606329,0.00016679,2]
[404568434,1770302889150,-283.574347,0.0001606,2]
[404568435,1770302889182,-266.79149812,0.00016679,2]
[404568436,1770302889222,-8899.27830976,0.00016679,2]
[404568437,1770302889248,-10000.01,0.00016679,2]
[404568438,1770302889375,-10000.01,0.00016679,2]
[404568439,1770302889522,-4942.73228832,0.00016679,2]
[404568440,1770302889551,-114.54542336,0.00016679,2]
[404568441,1770302889651,-10000.01,0.00016679,2]
[404568455,1770303032053,-1200.0,0.00013697,2]
[404568458,1770303032062,-500.0,0.00013698,2]
[404568460,1770303032072,-500.0,0.00013698,2]
[404568462,1770303032082,-500.0,0.00013698,2]
[404568464,1770303032092,-500.0,0.00013698,2]
[404568466,1770303032102,-500.0,0.00013698,2]
[404568468,1770303032112,-500.0,0.00013698,2]
[404568470,1770303032121,-500.0,0.00013698,2]
[404568472,1770303032132,-500.0,0.00013698,2]
[404568473,1770303032142,-500.0,0.00013698,2]
[404568474,1770303032151,-500.0,0.00013698,2]
[404568475,1770303032161,-263.0,0.00013698,2]
[404568476,1770303032170,-500.0,0.000146,2]
[404568477,1770303032179,-2500.0,0.00014683,2]
[404568478,1770303032190,-1680.0,0.00015067,2]
[404568479,1770303032199,-1000.0,0.00015148,2]
[404568480,1770303032209,-152.01739561,0.0001527,2]
[404568481,1770303032218,-1342.82592152,0.00015696,2]
[404568482,1770303032231,-157.17407848,0.00015696,2]
[404568483,1770303032240,-2500.0,0.0001606,2]
[404568484,1770303032251,-2293.34812617,0.0001606,2]
[404568485,1770303032261,-2000.0,0.00016244,2]
[404568486,1770303032270,-37704.83032065,0.00016444,2]
[404568487,1770303032293,-259.85,0.00016444,2]
[404568488,1770303032305,-419.82,0.00016444,2]
[404568489,1770303032320,-2730.65588453,0.00016444,2]
[404568491,1770303032333,-1052.16948953,0.00016444,2]
[404568493,1770303032368,-9553.91048967,0.00016444,2]
[404568494,1770303032382,-7062.00166884,0.00016444,2]
[404568509,1770303038513,-1380.74467034,0.00016444,2]
[404568510,1770303038526,-3510.92118183,0.00016444,2]
[404568511,1770303038541,-16317.37459625,0.00016444,2]
[404568512,1770303038664,-514.84056916,0.00016444,2]
[404568513,1770303038676,-2969.80208559,0.00016444,2]
[404568726,1770303040844,-6008.50315525,0.00016444,2]
[404568729,1770303040868,-321.81342667,0.00016444,2]
[404568731,1770303040878,-680.06867598,0.00016444,2]
[404568737,1770303040927,-30830.36177421,0.00016444,2]
[404568739,1770303040937,-2351.0,0.00016573,2]
[404568741,1770303040947,-1000.0,0.00016579,2]
[404568743,1770303040957,-2500.0,0.00016579,2]
[404568745,1770303040967,-23903.4013,0.00016679,2]
[404568747,1770303040976,-284.80146065,0.00016679,2]
[404568750,1770303040985,-378.0,0.00016695,2]
[404568751,1770303040995,-1000.0,0.00016711,2]
[404568754,1770303041005,-165.71,0.00016712,2]
[404568756,1770303041014,-1000.0,0.00016712,2]
[404568758,1770303041024,-1000.0,0.00016713,2]
[404568760,1770303041033,-174.61919141,0.00016717,2]
[404568761,1770303041042,-322.6107,0.00016717,2]
[404568764,1770303041052,-250.0,0.00016717,2]
[404568765,1770303041061,-250.0,0.00016717,2]
[404568768,1770303041070,-2000.0,0.00016717,2]
[404568769,1770303041079,-228.82569288,0.00016717,2]
[404568771,1770303041088,-2000.0,0.00016717,2]
[404568773,1770303041098,-2000.0,0.00016717,2]
[404568776,1770303041107,-2000.0,0.00016717,2]
[404568778,1770303041117,-2000.0,0.00016717,2]
[404568780,1770303041126,-2000.0,0.00016717,2]
[404568781,1770303041135,-277.35679052,0.00016717,2]
[404568783,1770303041148,-1308.64837692,0.00016717,2]
[404568786,1770303041158,-3000.0,0.00016717,2]
[404568787,1770303041167,-721.12765535,0.00016717,2]
[404568789,1770303041177,-200.0,0.00016717,2]
[404568791,1770303041187,-209.40437684,0.00016717,2]
[404568794,1770303041197,-209.40437684,0.00016717,2]
[404568795,1770303041206,-578.20924308,0.00016717,2]
[404568797,1770303041215,-743.50770149,0.00016717,2]
[404568799,1770303041225,-250.0,0.00016717,2]
[404568802,1770303041235,-250.0,0.00016717,2]
[404568804,1770303041246,-250.0,0.00016717,2]
[404568806,1770303041256,-250.0,0.00016717,2]
[404568808,1770303041266,-250.0,0.00016717,2]
[404568810,1770303041275,-262.29171236,0.00016717,2]
[404568812,1770303041284,-209.40437684,0.00016717,2]
[404568814,1770303041294,-197.52,0.0001676,2]
[404568816,1770303041304,-500.0,0.0001677,2]
[404568818,1770303041314,-30000.0,0.00016771,2]
[404568820,1770303041324,-217.15233878,0.00016772,2]
[404568822,1770303041333,-200.0,0.00016772,2]
[404568824,1770303041343,-457.99797698,0.00016783,2]
[404568826,1770303041353,-500.0,0.00016792,2]
[404568828,1770303041363,-1000.0,0.00016807,2]
[404568830,1770303041373,-225.18697532,0.00016827,2]
[404568832,1770303041382,-14568.7958752,0.00016859,2]
[404568834,1770303041394,-233.51889341,0.00016882,2]
[404568836,1770303041404,-500.0,0.00016899,2]
[404568838,1770303041414,-438.26710356,0.00016899,2]
[404568839,1770303041423,-500.0,0.00016899,2]
[404568842,1770303041442,-351.5182,0.00016899,2]
[404568845,1770303041455,-610.08217695,0.000169,2]
[404568846,1770303041465,-7000.0,0.000169,6]
[404568847,1770303041475,-378.0,0.00016902,2]
[404568848,1770303041485,-152.0,0.00016921,10]
[404568849,1770303041494,-242.15909246,0.00016937,2]
[404568850,1770303041504,-151.0,0.00016979,2]
[404568851,1770303041514,-155.0,0.00016979,2]
[404568852,1770303041524,-155.0,0.00016979,2]
[404568853,1770303041536,-155.0,0.00016979,2]
[404568854,1770303041546,-155.0,0.00016979,2]
[404568856,1770303041556,-155.0,0.00016979,2]
[404568857,1770303041566,-161.18585272,0.00016979,2]
[404568859,1770303041576,-152.88679959,0.00016979,2]
[404568860,1770303041586,-155.0,0.00016979,2]
[404568861,1770303041596,-1000.0,0.00016986,2]
[404568862,1770303041607,-251.11897888,0.00016992,2]
[404568863,1770303041617,-500.0,0.00017,2]
[404568865,1770303041627,-300.0,0.00017,2]
[404568867,1770303041637,-14100.0,0.00017,6]
[404568868,1770303041648,-5609.0,0.00017001,2]
[404568869,1770303041658,-197.52,0.00017034,2]
[404568870,1770303041669,-260.4103811,0.00017047,2]
[404568871,1770303041679,-5609.0,0.00017048,2]
[404568872,1770303041689,-701.0,0.00017053,2]
[404568873,1770303041698,-14568.7958752,0.00017068,2]
[404568874,1770303041708,-21200.0,0.000171,6]
[404568875,1770303041718,-270.0455652,0.00017102,2]
[404568876,1770303041728,-3476.56855018,0.00017106,2]
[404568877,1770303041737,-280.03725112,0.00017157,2]
[404568878,1770303041747,-244.78542289,0.0001718,2]
[404568879,1770303041756,-588.82231824,0.0001718,2]
[404568880,1770303041766,-1065.572664,0.00017181,2]
[404568881,1770303041775,-940.9090753,0.00017181,2]
[404568882,1770303041785,-116034.2093559,0.00017181,2]
[404568883,1770303041795,-7317.3245335,0.00017181,2]
[404568884,1770303041804,-10967.3897017,0.00017181,2]
[404568885,1770303041814,-310.72048062,0.00017184,2]
[404568886,1770303041823,-3476.56855011,0.00017194,2]
[404568887,1770303041833,-28300.0,0.000172,6]
[404568888,1770303041842,-5609.0,0.00017206,2]
[404568889,1770303041851,-701.0,0.00017209,2]
[404568890,1770303041861,-290.39862941,0.00017212,2]
[404568891,1770303041871,-1000.0,0.0001726,2]
[404568892,1770303041881,-181.08010149,0.00017265,2]
[404568893,1770303041890,-287.61899177,0.00017265,2]
[404568894,1770303041901,-3000.0,0.00017265,2]
[404568895,1770303041911,-200.0,0.00017265,2]
[404568896,1770303041921,-217.15233878,0.00017265,2]
[404568897,1770303041931,-217.15233878,0.00017265,2]
[404568898,1770303041941,-771.01748645,0.00017265,2]
[404568899,1770303041951,-301.1433787,0.00017267,2]
[404568900,1770303041960,-14568.7958752,0.00017276,2]
[404568901,1770303041970,-3476.56855011,0.00017282,2]
[404568902,1770303041979,-35300.0,0.000173,6]
[404568903,1770303041989,-151.0,0.00017306,2]
[404568904,1770303041999,-1093.22103094,0.00017306,2]
[404568906,1770303042009,-197.52,0.00017308,2]
[404568907,1770303042018,-200.0,0.0001732,2]
[404568908,1770303042027,-216.65,0.00017343,2]
[404568909,1770303042036,-3476.56855011,0.00017371,2]
[404568910,1770303042046,-160.0,0.00017398,2]
[404568911,1770303042055,-7000.0,0.000174,6]
[404568912,1770303042064,-393.0,0.00017425,2]
[404568913,1770303042074,-3476.56855011,0.00017459,2]
[404568914,1770303042084,-701.0,0.00017473,2]
[404568915,1770303042094,-378.0,0.00017479,2]
[404568916,1770303042103,-14568.7958752,0.00017484,2]
[404568917,1770303042113,-393.0,0.00017484,2]
[404568918,1770303042122,-2293.34812617,0.0001749,2]
[404568919,1770303042131,-7000.0,0.000175,6]
[404568920,1770303042140,-1069.0,0.0001752,2]
[404568921,1770303042153,-701.0,0.00017524,2]
[404568922,1770303042163,-152.93,0.0001753,2]
[404568923,1770303042173,-1000.0,0.00017534,2]
[404568924,1770303042182,-1069.0,0.00017537,2]
[404568925,1770303042192,-726.52,0.00017543,2]
[404568926,1770303042202,-1000.0,0.00017543,2]
[404568927,1770303042211,-3476.56855011,0.00017547,2]
[404568928,1770303042222,-1000.0,0.00017555,2]
[404568929,1770303042231,-152.0,0.00017569,11]
[404568930,1770303042241,-1000.0,0.0001757,2]
[404568931,1770303042251,-197.52,0.00017582,2]
[404568932,1770303042261,-7000.0,0.000176,6]
[404568933,1770303042271,-3476.56855011,0.00017635,2]
[404568934,1770303042280,-1069.0,0.00017648,2]
[404568935,1770303042291,-572.5809725,0.00017659,5]
[404568936,1770303042301,-616.445,0.00017677,2]
[404568937,1770303042310,-1411.0,0.00017677,2]
[404568938,1770303042320,-3482.0,0.00017677,2]
[404568939,1770303042330,-1335.0,0.00017677,2]
[404568940,1770303042339,-150.0,0.00017677,2]
[404568941,1770303042349,-1271.0,0.00017677,2]
[404568942,1770303042358,-151.0,0.00017677,2]
[404568943,1770303042368,-200.0,0.00017677,2]
[404568944,1770303042377,-6581.0,0.00017677,2]
[404568945,1770303042387,-568.0,0.00017677,2]
[404568946,1770303042400,-1317.0,0.00017677,2]
[404568947,1770303042410,-167.0,0.0001768,2]
[404568948,1770303042420,-2838.0,0.0001768,2]
[404568949,1770303042429,-839.0,0.0001768,2]
[404568950,1770303042439,-303.0,0.0001768,2]
[404568951,1770303042448,-14568.7958752,0.00017692,2]
[404568952,1770303042458,-7000.0,0.000177,6]
[404568953,1770303042467,-1506.0,0.000177,2]
[404568954,1770303042476,-5888.0,0.00017712,2]
[404568955,1770303042486,-15733.0,0.0001772,2]
[404568956,1770303042495,-171.90669668,0.0001772,2]
[404568957,1770303042505,-3476.56855011,0.00017724,2]
[404568958,1770303042515,-151.0,0.00017725,2]
[404568959,1770303042524,-2065.86,0.00017728,2]
[404568960,1770303042537,-20758.12,0.00017728,2]
[404568961,1770303042546,-9999.99,0.00017728,2]
[404568962,1770303042555,-25000.0,0.00017733,3]
[404568963,1770303042565,-25000.0,0.00017742,3]
[404568964,1770303042574,-171.90669662,0.0001775,2]
[404568965,1770303042583,-25000.0,0.0001775,3]
[404568966,1770303042592,-108941.79440421,0.00017752,2]
[404568967,1770303042603,-393.0,0.00017753,2]
[404568968,1770303042612,-172.17990431,0.00017755,2]
[404568969,1770303042622,-25000.0,0.00017759,3]
[404568970,1770303042631,-160.0,0.0001776,3]
[404568971,1770303042642,-1069.0,0.00017767,2]
[404568972,1770303042651,-25000.0,0.00017768,3]
[404568973,1770303042660,-1069.0,0.00017774,2]
[404568974,1770303042669,-25000.0,0.00017777,3]
[404568975,1770303042679,-171.90669662,0.0001778,2]
[404568976,1770303042688,-25000.0,0.00017786,3]
[404568977,1770303042697,-25000.0,0.00017794,3]
[404568978,1770303042706,-2000.0,0.000178,2]
[404568979,1770303042715,-7635.0,0.000178,6]
[404568980,1770303042725,-25000.0,0.00017803,3]
[404568981,1770303042734,-378.0,0.00017808,2]
[404568982,1770303042743,-436.0,0.00017808,2]
[404568983,1770303042753,-1000.0,0.00017808,2]
[404568984,1770303042762,-171.90669662,0.0001781,2]
[404568985,1770303042771,-3476.56855011,0.00017812,2]
[404568986,1770303042780,-25000.0,0.00017812,3]
[404568987,1770303042790,-187.78006525,0.00017813,2]
[404568988,1770303042799,-298.26089446,0.00017813,2]
[404568989,1770303042808,-3000.0,0.00017813,2]
[404568990,1770303042818,-200.0,0.00017813,2]
[404568991,1770303042827,-225.18697532,0.00017813,2]
[404568992,1770303042836,-225.18697532,0.00017813,2]
[404568993,1770303042846,-799.54513345,0.00017813,2]
[404568994,1770303042855,-152.01739561,0.00017815,2]
[404568995,1770303042865,-220.73148,0.0001782,2]
[404568996,1770303042874,-220.73148,0.0001782,2]
[404568997,1770303042883,-25000.0,0.00017821,3]
[404568998,1770303042894,-151.0,0.00017821,2]
[404568999,1770303042903,-378.0,0.00017825,2]
[404569000,1770303042913,-172.17990429,0.00017828,2]
[404569001,1770303042923,-869.18,0.00017829,2]
[404569002,1770303042931,-25000.0,0.0001783,3]
[404569003,1770303042941,-169.44963,0.0001783,2]
[404569004,1770303042950,-153.745102,0.0001783,2]
[404569005,1770303042959,-1000.0,0.00017832,2]
[404569006,1770303042969,-1000.0,0.00017837,2]
[404569007,1770303042979,-25000.0,0.00017838,3]
[404569008,1770303042988,-171.90669662,0.0001784,2]
[404569009,1770303042998,-378.0,0.00017841,2]
[404569010,1770303043007,-25000.0,0.00017847,3]
[404569012,1770303043017,-378.0,0.00017855,2]
[404569014,1770303043027,-200.0,0.00017855,2]